Workbook

Sheet 1. Info
AB1: Alectra Utilities Corporation - Enersource Hydro
AB2: Alectra Utilities Corporation - Horizon Utilities
AB3: Alectra Utilities Corporation - Hydro One Brampton
AB4: Alectra Utilities Corporation - PowerStream Inc.
AB5: Algoma Power Inc.
AB6: Atikokan Hydro Inc.
AB7: Attawapiskat Power Corp.
AB8: Bluewater Power Distribution Corporation
AB9: Brantford Power Inc.
AB10: Burlington Hydro Inc.
AB11: Canadian Niagara Power Inc.
AB12: Centre Wellington Hydro Ltd.
A13: Drop-down lists are shaded blue; Input cells are shaded green. | AB13: Chapleau Public Utilities Corporation
AB14: COLLUS PowerStream Corporation
C15: Utility Name | D15: Algoma Power Inc. | AB15: Cooperative Hydro Embrun Inc.
AB16: E.L.K. Energy Inc.
C17: Service Territory | D17: Algoma Region | AB17: Energy + Inc.
AB18: Entegrus Powerlines Inc.
C19: Assigned EB Number | D19: EB 2019-0019 | AB19: ENWIN Utilities Ltd.
AB20: Erie Thames Powerlines Corporation
C21: Name and Title | AB21: Espanola Regional Hydro Distribution Corporation
AB22: Essex Powerlines Corporation
C23: Phone Number | AB23: Festival Hydro Inc.
AB24: Fort Albany Power Corporation
C25: Email Address | AB25: Fort Frances Power Corporation
AB26: Greater Sudbury Hydro Inc.
C27: Date | AB27: Grimsby Power Inc.
AB28: Guelph Hydro Electric Systems Inc.
C29: Last COS Re-based Year | D29: 2015 | AB29: Halton Hills Hydro Inc.
AB30: Hearst Power Distribution Company Limited
AB31: Hydro 2000 Inc.
AB32: Hydro Hawkesbury Inc.
AB33: Hydro One Networks Inc.
AB34: Hydro One Networks Inc. - Haldimand County Hydro
AB35: Hydro One Networks Inc. - Norfolk Hydro
AB36: Hydro One Networks Inc. - Woodstock Hydro
AB37: Hydro One Remote Communities Inc.
AB38: Hydro Ottawa Limited
AB39: Innpower Corporation
AB40: Kashechewan Power Corporation
AB41: Kenora Hydro Electric Corporation Ltd.
AB42: Kingston Hydro Corporation
AB43: Kitchener-Wilmot Hydro Inc.
AB44: Lakefront Utilities Inc.
AB45: Lakeland Power Distribution Ltd.
AB46: London Hydro Inc.
AB47: Midland Power Utility Corporation
AB48: Milton Hydro Distribution inc.
AB49: Newmarket - Tay Power Distribution Ltd.
AB50: Niagara Peninsula Energy Inc.
AB51: Niagara-on-the-Lake Hydro Inc.
AB52: North Bay Hydro Distribution Limited
AB53: Northern Ontario Wires Inc.
AB54: Oakville Hydro Electricity Distribution Inc.
AB55: Orangeville Hydro Limited
AB56: Orillia Power Distribution Corporation
AB57: Oshawa PUC Networks Inc.
AB58: Ottawa River Power Corporation
AB59: Peterborough Distribution Incorporated
AB60: PUC Distribution Inc.
AB61: Renfrew Hydro Inc.
AB62: Rideau St. Lawrence Distribution Inc.
AB63: Sioux Lookout Hydro Inc.
AB64: St. Thomas Energy Inc.
AB65: Thunder Bay Hydro Electricity Distribution Inc.
AB66: Tillsonburg Hydro Inc.
AB67: Toronto Hydro-Electric System Limited
AB68: Veridian Connections Inc.
AB69: Wasaga Distribution Inc.
AB70: Waterloo North Hydro Inc.
AB71: Welland Hydro Electric System Corp.
AB72: Wellington North Power Inc.
AB73: West Coast Huron Energy Inc.
AB74: Westario Power Inc.
AB75: Whitby Hydro Electric Corporation

Sheet 2. Table of Contents
D20: 1. Info | I20: 6. Historical Wholesale
D22: 2. Table of Contents | I22: 7. Current Wholesale
D24: 3. Rate Classes | I24: 8. Forecast Wholesale
D26: 4. RRR Data | I26: 9. RTSR Rates to Forecast
D28: 5. UTRs and Sub-Transmission

Sheet 3. Rate Classes
C13: 1. Select the appropriate rate classes that appear on your most recent Board-Approved Tariff of Rates and Charges. 2. Enter the RTS Network and Connection Rate as it appears on the Tariff of Rates and Charges
C15: Rate Class | E15: Unit | G15: RTSR-Network | I15: RTSR-Connection
C17: Residential – High Density [R1] | E17: kWh | G17: 0.0066 | I17: 0.006 | L17: =IF(OR(ISBLANK(C17), ISERROR(FIND("Choose", C17))=FALSE), 0, 1) -> 1 | M17: ="C" & ROW(C17) -> C17 | N17: =IF(OR(C17="General Service Intermediate Rate Class 1,000 To 4,999 kW (formerly General Service > 50 kW Customers)", C17="General Service Intermediate Rate Class 1,000 To 4,999 kW (formerly Large Use Customers)"), "x", "") ->  | W17: Choose Rate Class
C18: General Service 50 to 4,999 kW | E18: kW | G18: 2.5066 | I18: 2.2787 | L18: 1 | M18: C18 | N18: =IF(OR(C18="General Service Intermediate Rate Class 1,000 To 4,999 kW (formerly General Service > 50 kW Customers)", C18="General Service Intermediate Rate Class 1,000 To 4,999 kW (formerly Large Use Customers)"), "x", "") ->  | W18: Residential
C19: Seasonal Residential – Normal Density [R4] | E19: kWh | G19: 0.0066 | I19: 0.006 | L19: 1 | M19: C19 | W19: Residential Regular
C20: Street Lighting | E20: kW | G20: 1.815 | I20: 1.6438 | L20: 1 | M20: C20 | W20: Residential Urban
C21: Choose Rate Class | L21: 0 | M21: C21 | W21: Residential Urban Year-Round
C22: Choose Rate Class | L22: 0 | M22: C22 | W22: Residential Suburban
C23: Choose Rate Class | L23: 0 | M23: C23 | W23: Residential Suburban Seasonal
C24: Choose Rate Class | L24: 0 | M24: C24 | W24: Residential Suburban Year Round
C25: Choose Rate Class | L25: 0 | M25: C25 | W25: Residential - Time of Use
C26: Choose Rate Class | L26: 0 | M26: C26 | W26: Residential - Hensall
C27: Choose Rate Class | L27: 0 | M27: C27 | W27: Residential – High Density [R1]
C28: Choose Rate Class | L28: 0 | M28: C28 | W28: Residential – Normal Density [R2]
C29: Choose Rate Class | L29: 0 | M29: C29 | W29: Seasonal Residential – High Density [R3]
C30: Choose Rate Class | L30: 0 | M30: C30 | W30: Seasonal Residential – Normal Density [R4]
C31: Choose Rate Class | L31: 0 | M31: C31 | W31: Residential – Urban [UR]
C32: Choose Rate Class | L32: 0 | M32: C32 | W32: General Service Less Than 50 kW
C33: Choose Rate Class | L33: 0 | M33: C33 | W33: General Service Less Than 50 kW – Single Phase energy-billed [G1]
C34: Choose Rate Class | L34: 0 | M34: C34 | W34: General Service Less Than 50 kW – Three Phase energy-billed [G3]
C35: Choose Rate Class | L35: 0 | M35: C35 | W35: General Service Less Than 50 kW – Transmission Class energy-billed [T]
C36: Choose Rate Class | L36: 0 | M36: C36 | W36: General Service Less Than 50 kW – Urban energy-billed [UG]
C37: Choose Rate Class | L37: 0 | M37: C37 | W37: Westport Sewage Treatment Plant
C38: Choose Rate Class | L38: 0 | M38: C38 | W38: Small Commercial and USL - per meter
N39: =COUNTIF(N17:N38, "x") -> 0 | W39: Small Commercial and USL - per connection
W40: Farms – Single Phase energy-billed [F1]
W41: General Service 50 to 499 kW
W42: General Service 50 to 699 kW
W43: General Service 50 to 999 kW
W44: General Service 50 to 999 kW - Interval Metered
W45: General Service 50 to 1,000 kW
W46: General Service 50 to 1,000 kW - Interval Meters
W47: General Service 50 to 1,000 kW - Non Interval Meters
W48: General Service 50 to 1,499 kW
W49: General Service 50 to 1,499 kW - Interval Metered
W50: General Service 50 to 2,499 kW
W51: General Service 50 to 2,999 kW
W52: General Service 50 to 2,999 kW - Time of Use
W53: General Service 50 to 4,999 kW
W54: General Service 50 to 4,999 kW – Interval Metered
W55: General Service 50 to 4,999 kW - Time of Use
W56: General Service 50 to 4,999 kW (CoGeneration)
W57: General Service 50 to 4,999 kW (formerly Time of Use)
W58: General Service 500 to 4,999 kW
W59: General Service 700 to 4,999 kW
W60: General Service 1,000 to 2,999 kW
W61: General Service 1,000 to 4,999 kW
W62: General Service 1,000 to 4,999 kW - Interval Meters
W63: General Service 1,000 To 4,999 kW (co-generation)
W64: General Service Greater Than 1,000 kW
W65: General Service Intermediate Rate Class 1,000 To 4,999 kW (formerly Large Use Customers)
W66: General Service Intermediate Rate Class 1,000 To 4,999 kW (formerly General Service > 50 kW Customers)
W67: General Service 1,500 to 4,999 kW
W68: General Service Equal To Or Greater Than 1,500 kW
W69: General Service Equal To Or Greater Than 1,500 kW - Interval Metered
W70: General Service Intermediate 1,000 To 4,999 kW
W71: General Service 2,500 to 4,999 kW
W72: General Service 3,000 to 4,999 kW
W73: General Service 3,000 to 4,999 kW - Interval Metered
W74: General Service 3,000 to 4,999 kW - Intermediate Use
W75: General Service 3,000 to 4,999 kW - Time of Use
W76: Intermediate With Self Generation
W77: General Service - Commercial
W78: General Service - Institutional
W79: Farms – Three Phase energy-billed [F3]
W80: Large Use
W81: Large Use - Regular
W82: Large Use > 5000 kW
W83: Large Use - 3TS
W84: Large Use - Ford Annex
W85: Unmetered Scattered Load
W86: Sentinel Lighting
W87: Street Lighting
W88: Embedded Distributor
W89: Low Voltage Wheeling Charge Rate
W90: Stand-By
W91: Standby Power
W92: Standby Power – INTERIM APPROVAL
W93: Standby Power - APPROVED ON AN INTERIM BASIS
W94: Standby - General Service 50 - 1,000 kW
W95: Standby Power General Service 50 to 1,499 kW
W96: Standby - General Service 1,000 - 5,000 kW
W97: Standby Power General Service 1,500 to 4,999 kW
W98: Standby - Large Use
W99: Standby Power General Service Large Use
W100: Standby Distribution Service

Sheet 4. RRR Data
B15: Rate Class | C15: Rate Description | D15: Unit | E15: Rate | F15: Non-Loss Adjusted Metered kWh | G15: Non-Loss Adjusted Metered kW | H15: Applicable Loss Factor eg: (1.0325) | I15: Loss Adjusted Billed kWh
B17: Residential – High Density [R1] | C17: RTSR - Network | D17: kWh | E17: 0.0066 | F17: 103931742 | H17: 1.0829 | I17: =F17*H17 -> 112547683.4
B18: Residential – High Density [R1] | C18: RTSR - Connection | D18: kWh | E18: 0.006 | F18: 103931742 | H18: 1.0829 | I18: =F18*H18 -> 112547683.4
B19: General Service 50 to 4,999 kW | C19: RTSR - Network | D19: kW | E19: 2.5066 | F19: 85867987 | G19: 196648
B20: General Service 50 to 4,999 kW | C20: RTSR - Connection | D20: kW | E20: 2.2787 | F20: 85867987 | G20: 196648
B21: Seasonal Residential – Normal Density [R4] | C21: RTSR - Network | D21: kWh | E21: 0.0066 | F21: 5439365 | H21: 1.0829 | I21: =F21*H21 -> 5890288.359
B22: Seasonal Residential – Normal Density [R4] | C22: RTSR - Connection | D22: kWh | E22: 0.006 | F22: 5439365 | H22: 1.0829 | I22: =F22*H22 -> 5890288.359
B23: Street Lighting | C23: RTSR - Network | D23: kW | E23: 1.815 | F23: 595435.1142 | G23: 1655
B24: Street Lighting | C24: RTSR - Connection | D24: kW | E24: 1.6438 | F24: 595435.1142 | G24: 1655

Sheet 5. UTRs and Sub-Transmission
B18: Uniform Transmission Rates | C18: Unit | E18: 2017 | H18: 2018 | J18: 2019
B20: Rate Description | E20: Rate | H20: Rate | J20: Rate
B22: Network Service Rate | C22: kW | E22: 3.66 | H22: 3.61 | J22: 3.71
B24: Line Connection Service Rate | C24: kW | E24: 0.87 | H24: 0.95 | J24: 0.94
B26: Transformation Connection Service Rate | C26: kW | E26: 2.02 | H26: 2.34 | J26: 2.25
B29: Hydro One Sub-Transmission Rates | C29: Unit | E29: 2017 | H29: 2018 | J29: 2019
B34: Rate Description | E34: Rate | H34: Rate | J34: Rate
B36: Network Service Rate | C36: kW | E36: 3.1942 | H36: 3.1942
B38: Line Connection Service Rate | C38: kW | E38: 0.771 | H38: 0.771
E39: 1.7493
B40: Transformation Connection Service Rate | C40: kW | H40: 1.7493
B42: Both Line and Transformation Connection Service Rate | C42: kW | E42: =E39+E38 -> 2.5203 | H42: =SUM(H40,H38) -> 2.5203 | J42: =SUM(J40,J38) -> 0
B45: If needed, add extra host here. (I) | C45: Unit | E45: 2017 | H45: 2018 | J45: 2019
B49: Rate Description | E49: Rate | H49: Rate | J49: Rate
B51: Network Service Rate | C51: kW
B53: Line Connection Service Rate | C53: kW
B55: Transformation Connection Service Rate | C55: kW
B57: Both Line and Transformation Connection Service Rate | C57: kW | E57: =SUM(E53,E55) -> 0 | H57: =SUM(H53,H55) -> 0 | J57: =J55+J53 -> 0
B60: If needed, add extra host here. (II) | C60: Unit | E60: Effective January 1, 2017 | H60: Effective January 1, 2018 | J60: Effective January 1, 2019
B64: Rate Description | E64: Rate | H64: Rate | J64: Rate
B66: Network Service Rate | C66: kW
B68: Line Connection Service Rate | C68: kW
B70: Transformation Connection Service Rate | C70: kW
B72: Both Line and Transformation Connection Service Rate | C72: kW | E72: =SUM(E68,E70) -> 0 | H72: =SUM(H68,H70) -> 0 | J72: =J70+J68 -> 0
E74: Historical 2017 | H74: Current 2018 | J74: Forecast 2019
B75: Low Voltage Switchgear Credit (if applicable, enter as a negative value) | C75: $

Sheet 6. Historical Wholesale
B21: IESO | D21: Network | H21: Line Connection | L21: Transformation Connection | P21: Total Line
B22: Month | D22: Units Billed | E22: Rate | F22: Amount | H22: Units Billed | I22: Rate | J22: Amount | L22: Units Billed | M22: Rate | N22: Amount | P22: Amount
B24: January | D24: 42655 | E24: 3.61 | F24: 153984.55 | H24: 20951 | I24: 0.95 | J24: 19903.45 | L24: 45847 | M24: 2.34 | N24: 107281.98 | P24: =J24+N24 -> 127185.43
B25: February | D25: 37471 | E25: 3.61 | F25: 135270.31 | H25: 21320 | I25: 0.95 | J25: 20254 | L25: 41941 | M25: 2.34 | N25: 98141.94 | P25: 118395.94
B26: March | D26: 34238 | E26: 3.61 | F26: 123599.18 | H26: 19403 | I26: 0.95 | J26: 18432.85 | L26: 36453 | M26: 2.34 | N26: 85300.02 | P26: 103732.87
B27: April | D27: 41801 | E27: 3.61 | F27: 150901.61 | H27: 29417 | I27: 0.95 | J27: 27946.15 | L27: 47270 | M27: 2.34 | N27: 110611.8 | P27: 138557.95
B28: May | D28: 33936 | E28: 3.61 | F28: 122508.96 | H28: 27048 | I28: 0.95 | J28: 25695.6 | L28: 40767 | M28: 2.34 | N28: 95394.78 | P28: 121090.38
B29: June | D29: 28094.27978 | E29: 3.61 | F29: 101420.35 | H29: 17040.85263 | I29: 0.95 | J29: 16188.81 | L29: 32018.11966 | M29: 2.34 | N29: 74922.4 | P29: 91111.21
B30: July | D30: 27198 | E30: 3.61 | F30: 98184.78 | H30: 16568 | I30: 0.95 | J30: 15739.6 | L30: 32935 | M30: 2.34 | N30: 77067.9 | P30: 92807.5
B31: August | D31: 27431 | E31: 3.61 | F31: 99025.91 | H31: 17319 | I31: 0.95 | J31: 16453.05 | L31: 33158 | M31: 2.34 | N31: 77589.72 | P31: 94042.77
B32: September | D32: 27694 | E32: 3.61 | F32: 99975.34 | H32: 18804 | I32: 0.95 | J32: 17863.8 | L32: 34866 | M32: 2.34 | N32: 81586.44 | P32: 99450.24
B33: October | D33: 32468 | E33: 3.61 | F33: 117209.48 | H33: 20127 | I33: 0.95 | J33: 19120.65 | L33: 37818 | M33: 2.34 | N33: 88494.12 | P33: 107614.77
B34: November | D34: 39496 | E34: 3.61 | F34: 142580.56 | H34: 21426 | I34: 0.95 | J34: 20354.7 | L34: 42482 | M34: 2.34 | N34: 99407.88 | P34: 119762.58
B35: December | D35: 38533 | E35: 3.61 | F35: 139104.13 | H35: 22639 | I35: 0.95 | J35: 21507.05 | L35: 42778 | M35: 2.34 | N35: 100100.52 | P35: 121607.57
B37: Total | D37: =SUM(D24:D35) -> 411015.2798 | E37: =IF(D37<>0,F37/D37,0) -> 3.61 | F37: =SUM(F24:F35) -> 1483765.16 | H37: =SUM(H24:H35) -> 252062.8526 | I37: =IF(H37<>0,J37/H37,0) -> 0.95 | J37: =SUM(J24:J35) -> 239459.71 | L37: =SUM(L24:L35) -> 468333.1197 | M37: =IF(L37<>0,N37/L37,0) -> 2.34 | N37: =SUM(N24:N35) -> 1095899.5 | P37: =SUM(P24:P35) -> 1335359.21
B39: Hydro One | D39: Network | H39: Line Connection | L39: Transformation Connection | P39: Total Line
B41: Month | D41: Units Billed | E41: Rate | F41: Amount | H41: Units Billed | I41: Rate | J41: Amount | L41: Units Billed | M41: Rate | N41: Amount | P41: Amount
B43: January | E43: =IF(D43<>0,F43/D43,0) -> 0 | I43: =IF(H43<>0,J43/H43,0) -> 0 | M43: =IF(L43<>0,N43/L43,0) -> 0 | P43: =J43+N43 -> 0
B44: February | E44: =IF(D44<>0,F44/D44,0) -> 0 | I44: =IF(H44<>0,J44/H44,0) -> 0 | M44: =IF(L44<>0,N44/L44,0) -> 0 | P44: 0
B45: March | E45: 0 | I45: 0 | M45: 0 | P45: 0
B46: April | E46: 0 | I46: 0 | M46: 0 | P46: 0
B47: May | E47: 0 | I47: 0 | M47: 0 | P47: 0
B48: June | E48: 0 | I48: 0 | M48: 0 | P48: 0
B49: July | E49: 0 | I49: 0 | M49: 0 | P49: 0
B50: August | E50: 0 | I50: 0 | M50: 0 | P50: 0
B51: September | E51: 0 | I51: 0 | M51: 0 | P51: 0
B52: October | E52: 0 | I52: 0 | M52: 0 | P52: 0
B53: November | E53: 0 | I53: 0 | M53: 0 | P53: 0
B54: December | E54: 0 | I54: 0 | M54: 0 | P54: 0
B56: Total | D56: =SUM(D43:D54) -> 0 | E56: =IF(D56<>0,F56/D56,0) -> 0 | F56: =SUM(F43:F54) -> 0 | H56: =SUM(H43:H54) -> 0 | I56: =IF(H56<>0,J56/H56,0) -> 0 | J56: =SUM(J43:J54) -> 0 | L56: =SUM(L43:L54) -> 0 | M56: =IF(L56<>0,N56/L56,0) -> 0 | N56: =SUM(N43:N54) -> 0 | P56: =SUM(P43:P54) -> 0
B58: Add Extra Host Here (I) | D58: Network | H58: Line Connection | L58: Transformation Connection | P58: Total Line
B59: (if needed)
B60: Month | D60: Units Billed | E60: Rate | F60: Amount | H60: Units Billed | I60: Rate | J60: Amount | L60: Units Billed | M60: Rate | N60: Amount | P60: Amount
B62: January | E62: =IF(D62<>0,F62/D62,0) -> 0 | I62: =IF(H62<>0,J62/H62,0) -> 0 | M62: =IF(L62<>0,N62/L62,0) -> 0 | P62: =J62+N62 -> 0
B63: February | E63: 0 | I63: 0 | M63: 0 | P63: 0
B64: March | E64: 0 | I64: 0 | M64: 0 | P64: 0
B65: April | E65: 0 | I65: 0 | M65: 0 | P65: 0
B66: May | E66: 0 | I66: 0 | M66: 0 | P66: 0
B67: June | E67: 0 | I67: 0 | M67: 0 | P67: 0
B68: July | E68: 0 | I68: 0 | M68: 0 | P68: 0
B69: August | E69: 0 | I69: 0 | M69: 0 | P69: 0
B70: September | E70: 0 | I70: 0 | M70: 0 | P70: 0
B71: October | E71: 0 | I71: 0 | M71: 0 | P71: 0
B72: November | E72: 0 | I72: 0 | M72: 0 | P72: 0
B73: December | E73: 0 | I73: 0 | M73: 0 | P73: 0
B75: Total | D75: =SUM(D62:D73) -> 0 | E75: =IF(D75<>0,F75/D75,0) -> 0 | F75: =SUM(F62:F73) -> 0 | H75: =SUM(H62:H73) -> 0 | I75: =IF(H75<>0,J75/H75,0) -> 0 | J75: =SUM(J62:J73) -> 0 | L75: =SUM(L62:L73) -> 0 | M75: =IF(L75<>0,N75/L75,0) -> 0 | N75: =SUM(N62:N73) -> 0 | P75: =SUM(P62:P73) -> 0
B77: Add Extra Host Here (II) | D77: Network | H77: Line Connection | L77: Transformation Connection | P77: Total Line
B78: (if needed)
B79: Month | D79: Units Billed | E79: Rate | F79: Amount | H79: Units Billed | I79: Rate | J79: Amount | L79: Units Billed | M79: Rate | N79: Amount | P79: Amount
B81: January | E81: =IF(D81<>0,F81/D81,0) -> 0 | I81: =IF(H81<>0,J81/H81,0) -> 0 | M81: =IF(L81<>0,N81/L81,0) -> 0 | P81: =J81+N81 -> 0
B82: February | E82: 0 | I82: 0 | M82: 0 | P82: 0
B83: March | E83: 0 | I83: 0 | M83: 0 | P83: 0
B84: April | E84: 0 | I84: 0 | M84: 0 | P84: 0
B85: May | E85: 0 | I85: 0 | M85: 0 | P85: 0
B86: June | E86: 0 | I86: 0 | M86: 0 | P86: 0
B87: July | E87: 0 | I87: 0 | M87: 0 | P87: 0
B88: August | E88: 0 | I88: 0 | M88: 0 | P88: 0
B89: September | E89: 0 | I89: 0 | M89: 0 | P89: 0
B90: October | E90: 0 | I90: 0 | M90: 0 | P90: 0
B91: November | E91: 0 | I91: 0 | M91: 0 | P91: 0
B92: December | E92: 0 | I92: 0 | M92: 0 | P92: 0
B94: Total | D94: =SUM(D81:D92) -> 0 | E94: =IF(D94<>0,F94/D94,0) -> 0 | F94: =SUM(F81:F92) -> 0 | H94: =SUM(H81:H92) -> 0 | I94: =IF(H94<>0,J94/H94,0) -> 0 | J94: =SUM(J81:J92) -> 0 | L94: =SUM(L81:L92) -> 0 | M94: =IF(L94<>0,N94/L94,0) -> 0 | N94: =SUM(N81:N92) -> 0 | P94: =SUM(P81:P92) -> 0
B96: Total | D96: Network | H96: Line Connection | L96: Transformation Connection | P96: Total Line
B98: Month | D98: Units Billed | E98: Rate | F98: Amount | H98: Units Billed | I98: Rate | J98: Amount | L98: Units Billed | M98: Rate | N98: Amount | P98: Amount
B100: January | D100: =D24+D43+D62+D81 -> 42655 | E100: =IF(D100<>0,F100/D100,0) -> 3.61 | F100: =F24+F43+F62+F81 -> 153984.55 | H100: =H24+H43+H62+H81 -> 20951 | I100: =IF(H100<>0,J100/H100,0) -> 0.95 | J100: =J24+J43+J62+J81 -> 19903.45 | L100: =L24+L43+L62+L81 -> 45847 | M100: =IF(L100<>0,N100/L100,0) -> 2.34 | N100: =N24+N43+N62+N81 -> 107281.98 | P100: =J100+N100 -> 127185.43
B101: February | D101: =D25+D44+D63+D82 -> 37471 | E101: 3.61 | F101: =F25+F44+F63+F82 -> 135270.31 | H101: =H25+H44+H63+H82 -> 21320 | I101: 0.95 | J101: =J25+J44+J63+J82 -> 20254 | L101: =L25+L44+L63+L82 -> 41941 | M101: 2.34 | N101: =N25+N44+N63+N82 -> 98141.94 | P101: 118395.94
B102: March | D102: 34238 | E102: 3.61 | F102: 123599.18 | H102: 19403 | I102: 0.95 | J102: 18432.85 | L102: 36453 | M102: 2.34 | N102: 85300.02 | P102: 103732.87
B103: April | D103: 41801 | E103: 3.61 | F103: 150901.61 | H103: 29417 | I103: 0.95 | J103: 27946.15 | L103: 47270 | M103: 2.34 | N103: 110611.8 | P103: 138557.95
B104: May | D104: 33936 | E104: 3.61 | F104: 122508.96 | H104: 27048 | I104: 0.95 | J104: 25695.6 | L104: 40767 | M104: 2.34 | N104: 95394.78 | P104: 121090.38
B105: June | D105: 28094.27978 | E105: 3.61 | F105: 101420.35 | H105: 17040.85263 | I105: 0.95 | J105: 16188.81 | L105: 32018.11966 | M105: 2.34 | N105: 74922.4 | P105: 91111.21
B106: July | D106: 27198 | E106: 3.61 | F106: 98184.78 | H106: 16568 | I106: 0.95 | J106: 15739.6 | L106: 32935 | M106: 2.34 | N106: 77067.9 | P106: 92807.5
B107: August | D107: 27431 | E107: 3.61 | F107: 99025.91 | H107: 17319 | I107: 0.95 | J107: 16453.05 | L107: 33158 | M107: 2.34 | N107: 77589.72 | P107: 94042.77
B108: September | D108: 27694 | E108: 3.61 | F108: 99975.34 | H108: 18804 | I108: 0.95 | J108: 17863.8 | L108: 34866 | M108: 2.34 | N108: 81586.44 | P108: 99450.24
B109: October | D109: 32468 | E109: 3.61 | F109: 117209.48 | H109: 20127 | I109: 0.95 | J109: 19120.65 | L109: 37818 | M109: 2.34 | N109: 88494.12 | P109: 107614.77
B110: November | D110: 39496 | E110: 3.61 | F110: 142580.56 | H110: 21426 | I110: 0.95 | J110: 20354.7 | L110: 42482 | M110: 2.34 | N110: 99407.88 | P110: 119762.58
B111: December | D111: 38533 | E111: 3.61 | F111: 139104.13 | H111: 22639 | I111: 0.95 | J111: 21507.05 | L111: 42778 | M111: 2.34 | N111: 100100.52 | P111: 121607.57
B113: Total | D113: =SUM(D100:D111) -> 411015.2798 | E113: =IF(D113<>0,F113/D113,0) -> 3.61 | F113: =SUM(F100:F111) -> 1483765.16 | H113: =SUM(H100:H111) -> 252062.8526 | I113: =IF(H113<>0,J113/H113,0) -> 0.95 | J113: =SUM(J100:J111) -> 239459.71 | L113: =SUM(L100:L111) -> 468333.1197 | M113: =IF(L113<>0,N113/L113,0) -> 2.34 | N113: =SUM(N100:N111) -> 1095899.5 | P113: =SUM(P100:P111) -> 1335359.21
N115: Low Voltage Switchgear Credit (if applicable) | P115: ='5. UTRs and Sub-Transmission'!E75 -> 0
N117: Total including deduction for Low Voltage Switchgear Credit | P117: =P113+P115 -> 1335359.21

Sheet 7. Current Wholesale
B13: The purpose of this sheet is to calculate the expected billing when current 2018 Uniform Transmission Rates are applied against historical 2017 transmission units.
B20: IESO | D20: Network | H20: Line Connection | L20: Transformation Connection | P20: Total Line
B22: Month | D22: Units Billed | E22: Rate | F22: Amount | H22: Units Billed | I22: Rate | J22: Amount | L22: Units Billed | M22: Rate | N22: Amount | P22: Amount
B24: January | D24: ='6. Historical Wholesale'!D24 -> 42655 | E24: ='5. UTRs and Sub-Transmission'!H22 -> 3.61 | F24: =D24*E24 -> 153984.55 | H24: ='6. Historical Wholesale'!H24 -> 20951 | I24: ='5. UTRs and Sub-Transmission'!H24 -> 0.95 | J24: =H24*I24 -> 19903.45 | L24: ='6. Historical Wholesale'!L24 -> 45847 | M24: ='5. UTRs and Sub-Transmission'!H26 -> 2.34 | N24: =L24*M24 -> 107281.98 | P24: =J24+N24 -> 127185.43
B25: February | D25: ='6. Historical Wholesale'!D25 -> 37471 | E25: =E24 -> 3.61 | F25: =D25*E25 -> 135270.31 | H25: ='6. Historical Wholesale'!H25 -> 21320 | I25: =I24 -> 0.95 | J25: =H25*I25 -> 20254 | L25: ='6. Historical Wholesale'!L25 -> 41941 | M25: =M24 -> 2.34 | N25: =L25*M25 -> 98141.94 | P25: 118395.94
B26: March | D26: ='6. Historical Wholesale'!D26 -> 34238 | E26: =E25 -> 3.61 | F26: 123599.18 | H26: ='6. Historical Wholesale'!H26 -> 19403 | I26: =I25 -> 0.95 | J26: 18432.85 | L26: ='6. Historical Wholesale'!L26 -> 36453 | M26: =M25 -> 2.34 | N26: 85300.02 | P26: 103732.87
B27: April | D27: ='6. Historical Wholesale'!D27 -> 41801 | E27: 3.61 | F27: 150901.61 | H27: ='6. Historical Wholesale'!H27 -> 29417 | I27: 0.95 | J27: 27946.15 | L27: ='6. Historical Wholesale'!L27 -> 47270 | M27: 2.34 | N27: 110611.8 | P27: 138557.95
B28: May | D28: ='6. Historical Wholesale'!D28 -> 33936 | E28: 3.61 | F28: 122508.96 | H28: ='6. Historical Wholesale'!H28 -> 27048 | I28: 0.95 | J28: 25695.6 | L28: ='6. Historical Wholesale'!L28 -> 40767 | M28: 2.34 | N28: 95394.78 | P28: 121090.38
B29: June | D29: ='6. Historical Wholesale'!D29 -> 28094.27978 | E29: 3.61 | F29: 101420.35 | H29: ='6. Historical Wholesale'!H29 -> 17040.85263 | I29: 0.95 | J29: 16188.81 | L29: ='6. Historical Wholesale'!L29 -> 32018.11966 | M29: 2.34 | N29: 74922.4 | P29: 91111.21
B30: July | D30: ='6. Historical Wholesale'!D30 -> 27198 | E30: 3.61 | F30: 98184.78 | H30: ='6. Historical Wholesale'!H30 -> 16568 | I30: 0.95 | J30: 15739.6 | L30: ='6. Historical Wholesale'!L30 -> 32935 | M30: 2.34 | N30: 77067.9 | P30: 92807.5
B31: August | D31: ='6. Historical Wholesale'!D31 -> 27431 | E31: 3.61 | F31: 99025.91 | H31: ='6. Historical Wholesale'!H31 -> 17319 | I31: 0.95 | J31: 16453.05 | L31: ='6. Historical Wholesale'!L31 -> 33158 | M31: 2.34 | N31: 77589.72 | P31: 94042.77
B32: September | D32: ='6. Historical Wholesale'!D32 -> 27694 | E32: 3.61 | F32: 99975.34 | H32: ='6. Historical Wholesale'!H32 -> 18804 | I32: 0.95 | J32: 17863.8 | L32: ='6. Historical Wholesale'!L32 -> 34866 | M32: 2.34 | N32: 81586.44 | P32: 99450.24
B33: October | D33: ='6. Historical Wholesale'!D33 -> 32468 | E33: 3.61 | F33: 117209.48 | H33: ='6. Historical Wholesale'!H33 -> 20127 | I33: 0.95 | J33: 19120.65 | L33: ='6. Historical Wholesale'!L33 -> 37818 | M33: 2.34 | N33: 88494.12 | P33: 107614.77
B34: November | D34: ='6. Historical Wholesale'!D34 -> 39496 | E34: 3.61 | F34: 142580.56 | H34: ='6. Historical Wholesale'!H34 -> 21426 | I34: 0.95 | J34: 20354.7 | L34: ='6. Historical Wholesale'!L34 -> 42482 | M34: 2.34 | N34: 99407.88 | P34: 119762.58
B35: December | D35: ='6. Historical Wholesale'!D35 -> 38533 | E35: 3.61 | F35: 139104.13 | H35: ='6. Historical Wholesale'!H35 -> 22639 | I35: 0.95 | J35: 21507.05 | L35: ='6. Historical Wholesale'!L35 -> 42778 | M35: 2.34 | N35: 100100.52 | P35: 121607.57
B37: Total | D37: =SUM(D24:D35) -> 411015.2798 | E37: =IF(D37<>0,F37/D37,0) -> 3.61 | F37: =SUM(F24:F35) -> 1483765.16 | H37: =SUM(H24:H35) -> 252062.8526 | I37: =IF(H37<>0,J37/H37,0) -> 0.95 | J37: =SUM(J24:J35) -> 239459.71 | L37: =SUM(L24:L35) -> 468333.1197 | M37: =IF(L37<>0,N37/L37,0) -> 2.34 | N37: =SUM(N24:N35) -> 1095899.5 | P37: =SUM(P24:P35) -> 1335359.21
B39: Hydro One | D39: Network | H39: Line Connection | L39: Transformation Connection | P39: Total Line
B41: Month | D41: Units Billed | E41: Rate | F41: Amount | H41: Units Billed | I41: Rate | J41: Amount | L41: Units Billed | M41: Rate | N41: Amount | P41: Amount
B43: January | D43: ='6. Historical Wholesale'!D43 -> 0 | E43: ='5. UTRs and Sub-Transmission'!H36 -> 3.1942 | F43: =D43*E43 -> 0 | H43: ='6. Historical Wholesale'!H43 -> 0 | I43: ='5. UTRs and Sub-Transmission'!H38 -> 0.771 | J43: =H43*I43 -> 0 | L43: ='6. Historical Wholesale'!L43 -> 0 | M43: ='5. UTRs and Sub-Transmission'!H40 -> 1.7493 | N43: =L43*M43 -> 0 | P43: =J43+N43 -> 0
B44: February | D44: ='6. Historical Wholesale'!D44 -> 0 | E44: =E43 -> 3.1942 | F44: =D44*E44 -> 0 | H44: ='6. Historical Wholesale'!H44 -> 0 | I44: =I43 -> 0.771 | J44: =H44*I44 -> 0 | L44: ='6. Historical Wholesale'!L44 -> 0 | M44: =M43 -> 1.7493 | N44: =L44*M44 -> 0 | P44: 0
B45: March | D45: ='6. Historical Wholesale'!D45 -> 0 | E45: 3.1942 | F45: 0 | H45: ='6. Historical Wholesale'!H45 -> 0 | I45: 0.771 | J45: 0 | L45: ='6. Historical Wholesale'!L45 -> 0 | M45: =M44 -> 1.7493 | N45: 0 | P45: 0
B46: April | D46: ='6. Historical Wholesale'!D46 -> 0 | E46: 3.1942 | F46: 0 | H46: ='6. Historical Wholesale'!H46 -> 0 | I46: 0.771 | J46: 0 | L46: ='6. Historical Wholesale'!L46 -> 0 | M46: =M45 -> 1.7493 | N46: 0 | P46: 0
B47: May | D47: ='6. Historical Wholesale'!D47 -> 0 | E47: 3.1942 | F47: 0 | H47: ='6. Historical Wholesale'!H47 -> 0 | I47: 0.771 | J47: 0 | L47: ='6. Historical Wholesale'!L47 -> 0 | M47: 1.7493 | N47: 0 | P47: 0
B48: June | D48: ='6. Historical Wholesale'!D48 -> 0 | E48: 3.1942 | F48: 0 | H48: ='6. Historical Wholesale'!H48 -> 0 | I48: 0.771 | J48: 0 | L48: ='6. Historical Wholesale'!L48 -> 0 | M48: 1.7493 | N48: 0 | P48: 0
B49: July | D49: ='6. Historical Wholesale'!D49 -> 0 | E49: 3.1942 | F49: 0 | H49: ='6. Historical Wholesale'!H49 -> 0 | I49: 0.771 | J49: 0 | L49: ='6. Historical Wholesale'!L49 -> 0 | M49: 1.7493 | N49: 0 | P49: 0
B50: August | D50: ='6. Historical Wholesale'!D50 -> 0 | E50: 3.1942 | F50: 0 | H50: ='6. Historical Wholesale'!H50 -> 0 | I50: 0.771 | J50: 0 | L50: ='6. Historical Wholesale'!L50 -> 0 | M50: 1.7493 | N50: 0 | P50: 0
B51: September | D51: ='6. Historical Wholesale'!D51 -> 0 | E51: 3.1942 | F51: 0 | H51: ='6. Historical Wholesale'!H51 -> 0 | I51: 0.771 | J51: 0 | L51: ='6. Historical Wholesale'!L51 -> 0 | M51: 1.7493 | N51: 0 | P51: 0
B52: October | D52: ='6. Historical Wholesale'!D52 -> 0 | E52: 3.1942 | F52: 0 | H52: ='6. Historical Wholesale'!H52 -> 0 | I52: 0.771 | J52: 0 | L52: ='6. Historical Wholesale'!L52 -> 0 | M52: 1.7493 | N52: 0 | P52: 0
B53: November | D53: ='6. Historical Wholesale'!D53 -> 0 | E53: 3.1942 | F53: 0 | H53: ='6. Historical Wholesale'!H53 -> 0 | I53: 0.771 | J53: 0 | L53: ='6. Historical Wholesale'!L53 -> 0 | M53: 1.7493 | N53: 0 | P53: 0
B54: December | D54: ='6. Historical Wholesale'!D54 -> 0 | E54: 3.1942 | F54: 0 | H54: ='6. Historical Wholesale'!H54 -> 0 | I54: 0.771 | J54: 0 | L54: ='6. Historical Wholesale'!L54 -> 0 | M54: 1.7493 | N54: 0 | P54: 0
B56: Total | D56: =SUM(D43:D54) -> 0 | E56: =IF(D56<>0,F56/D56,0) -> 0 | F56: =SUM(F43:F54) -> 0 | H56: =SUM(H43:H54) -> 0 | I56: =IF(H56<>0,J56/H56,0) -> 0 | J56: =SUM(J43:J54) -> 0 | L56: =SUM(L43:L54) -> 0 | M56: =IF(L56<>0,N56/L56,0) -> 0 | N56: =SUM(N43:N54) -> 0 | P56: =SUM(P43:P54) -> 0
B58: ='6. Historical Wholesale'!B58 -> Add Extra Host Here (I) | D58: Network | H58: Line Connection | L58: Transformation Connection | P58: Total Line
B60: Month | D60: Units Billed | E60: Rate | F60: Amount | H60: Units Billed | I60: Rate | J60: Amount | L60: Units Billed | M60: Rate | N60: Amount | P60: Amount
B62: January | D62: ='6. Historical Wholesale'!D62 -> 0 | E62: ='5. UTRs and Sub-Transmission'!H51 -> 0 | F62: =D62*E62 -> 0 | H62: ='6. Historical Wholesale'!H62 -> 0 | I62: ='5. UTRs and Sub-Transmission'!H53 -> 0 | J62: =H62*I62 -> 0 | L62: ='6. Historical Wholesale'!L62 -> 0 | M62: ='5. UTRs and Sub-Transmission'!H55 -> 0 | N62: =L62*M62 -> 0 | P62: =J62+N62 -> 0
B63: February | D63: ='6. Historical Wholesale'!D63 -> 0 | E63: =E62 -> 0 | F63: =D63*E63 -> 0 | H63: ='6. Historical Wholesale'!H63 -> 0 | I63: =I62 -> 0 | J63: =H63*I63 -> 0 | L63: ='6. Historical Wholesale'!L63 -> 0 | M63: =M62 -> 0 | N63: =L63*M63 -> 0 | P63: 0
B64: March | D64: ='6. Historical Wholesale'!D64 -> 0 | E64: =E63 -> 0 | F64: 0 | H64: ='6. Historical Wholesale'!H64 -> 0 | I64: =I63 -> 0 | J64: 0 | L64: ='6. Historical Wholesale'!L64 -> 0 | M64: =M63 -> 0 | N64: 0 | P64: 0
B65: April | D65: ='6. Historical Wholesale'!D65 -> 0 | E65: 0 | F65: 0 | H65: ='6. Historical Wholesale'!H65 -> 0 | I65: 0 | J65: 0 | L65: ='6. Historical Wholesale'!L65 -> 0 | M65: =M64 -> 0 | N65: 0 | P65: 0
B66: May | D66: ='6. Historical Wholesale'!D66 -> 0 | E66: 0 | F66: 0 | H66: ='6. Historical Wholesale'!H66 -> 0 | I66: 0 | J66: 0 | L66: ='6. Historical Wholesale'!L66 -> 0 | M66: 0 | N66: 0 | P66: 0
B67: June | D67: ='6. Historical Wholesale'!D67 -> 0 | E67: 0 | F67: 0 | H67: ='6. Historical Wholesale'!H67 -> 0 | I67: 0 | J67: 0 | L67: ='6. Historical Wholesale'!L67 -> 0 | M67: 0 | N67: 0 | P67: 0
B68: July | D68: ='6. Historical Wholesale'!D68 -> 0 | E68: 0 | F68: 0 | H68: ='6. Historical Wholesale'!H68 -> 0 | I68: 0 | J68: 0 | L68: ='6. Historical Wholesale'!L68 -> 0 | M68: 0 | N68: 0 | P68: 0
B69: August | D69: ='6. Historical Wholesale'!D69 -> 0 | E69: 0 | F69: 0 | H69: ='6. Historical Wholesale'!H69 -> 0 | I69: 0 | J69: 0 | L69: ='6. Historical Wholesale'!L69 -> 0 | M69: 0 | N69: 0 | P69: 0
B70: September | D70: ='6. Historical Wholesale'!D70 -> 0 | E70: 0 | F70: 0 | H70: ='6. Historical Wholesale'!H70 -> 0 | I70: 0 | J70: 0 | L70: ='6. Historical Wholesale'!L70 -> 0 | M70: 0 | N70: 0 | P70: 0
B71: October | D71: ='6. Historical Wholesale'!D71 -> 0 | E71: 0 | F71: 0 | H71: ='6. Historical Wholesale'!H71 -> 0 | I71: 0 | J71: 0 | L71: ='6. Historical Wholesale'!L71 -> 0 | M71: 0 | N71: 0 | P71: 0
B72: November | D72: ='6. Historical Wholesale'!D72 -> 0 | E72: 0 | F72: 0 | H72: ='6. Historical Wholesale'!H72 -> 0 | I72: 0 | J72: 0 | L72: ='6. Historical Wholesale'!L72 -> 0 | M72: 0 | N72: 0 | P72: 0
B73: December | D73: ='6. Historical Wholesale'!D73 -> 0 | E73: 0 | F73: 0 | H73: ='6. Historical Wholesale'!H73 -> 0 | I73: 0 | J73: 0 | L73: ='6. Historical Wholesale'!L73 -> 0 | M73: 0 | N73: 0 | P73: 0
B75: Total | D75: =SUM(D62:D73) -> 0 | E75: =IF(D75<>0,F75/D75,0) -> 0 | F75: =SUM(F62:F73) -> 0 | H75: =SUM(H62:H73) -> 0 | I75: =IF(H75<>0,J75/H75,0) -> 0 | J75: =SUM(J62:J73) -> 0 | L75: =SUM(L62:L73) -> 0 | M75: =IF(L75<>0,N75/L75,0) -> 0 | N75: =SUM(N62:N73) -> 0 | P75: =SUM(P62:P73) -> 0
B77: ='6. Historical Wholesale'!B77 -> Add Extra Host Here (II) | D77: Network | H77: Line Connection | L77: Transformation Connection | P77: Total Line
B79: Month | D79: Units Billed | E79: Rate | F79: Amount | H79: Units Billed | I79: Rate | J79: Amount | L79: Units Billed | M79: Rate | N79: Amount | P79: Amount
B81: January | D81: ='6. Historical Wholesale'!D81 -> 0 | E81: ='5. UTRs and Sub-Transmission'!H66 -> 0 | F81: =D81*E81 -> 0 | H81: ='6. Historical Wholesale'!H81 -> 0 | I81: ='5. UTRs and Sub-Transmission'!H68 -> 0 | J81: =H81*I81 -> 0 | L81: ='6. Historical Wholesale'!L81 -> 0 | M81: ='5. UTRs and Sub-Transmission'!H70 -> 0 | N81: =L81*M81 -> 0 | P81: =J81+N81 -> 0
B82: February | D82: ='6. Historical Wholesale'!D82 -> 0 | E82: =E81 -> 0 | F82: =D82*E82 -> 0 | H82: ='6. Historical Wholesale'!H82 -> 0 | I82: =I81 -> 0 | J82: =H82*I82 -> 0 | L82: ='6. Historical Wholesale'!L82 -> 0 | M82: =M81 -> 0 | N82: =L82*M82 -> 0 | P82: 0
B83: March | D83: ='6. Historical Wholesale'!D83 -> 0 | E83: =E82 -> 0 | F83: 0 | H83: ='6. Historical Wholesale'!H83 -> 0 | I83: =I82 -> 0 | J83: 0 | L83: ='6. Historical Wholesale'!L83 -> 0 | M83: =M82 -> 0 | N83: 0 | P83: 0
B84: April | D84: ='6. Historical Wholesale'!D84 -> 0 | E84: 0 | F84: 0 | H84: ='6. Historical Wholesale'!H84 -> 0 | I84: 0 | J84: 0 | L84: ='6. Historical Wholesale'!L84 -> 0 | M84: =M83 -> 0 | N84: 0 | P84: 0
B85: May | D85: ='6. Historical Wholesale'!D85 -> 0 | E85: 0 | F85: 0 | H85: ='6. Historical Wholesale'!H85 -> 0 | I85: 0 | J85: 0 | L85: ='6. Historical Wholesale'!L85 -> 0 | M85: 0 | N85: 0 | P85: 0
B86: June | D86: ='6. Historical Wholesale'!D86 -> 0 | E86: 0 | F86: 0 | H86: ='6. Historical Wholesale'!H86 -> 0 | I86: 0 | J86: 0 | L86: ='6. Historical Wholesale'!L86 -> 0 | M86: 0 | N86: 0 | P86: 0
B87: July | D87: ='6. Historical Wholesale'!D87 -> 0 | E87: 0 | F87: 0 | H87: ='6. Historical Wholesale'!H87 -> 0 | I87: 0 | J87: 0 | L87: ='6. Historical Wholesale'!L87 -> 0 | M87: 0 | N87: 0 | P87: 0
B88: August | D88: ='6. Historical Wholesale'!D88 -> 0 | E88: 0 | F88: 0 | H88: ='6. Historical Wholesale'!H88 -> 0 | I88: 0 | J88: 0 | L88: ='6. Historical Wholesale'!L88 -> 0 | M88: 0 | N88: 0 | P88: 0
B89: September | D89: ='6. Historical Wholesale'!D89 -> 0 | E89: 0 | F89: 0 | H89: ='6. Historical Wholesale'!H89 -> 0 | I89: 0 | J89: 0 | L89: ='6. Historical Wholesale'!L89 -> 0 | M89: 0 | N89: 0 | P89: 0
B90: October | D90: ='6. Historical Wholesale'!D90 -> 0 | E90: 0 | F90: 0 | H90: ='6. Historical Wholesale'!H90 -> 0 | I90: 0 | J90: 0 | L90: ='6. Historical Wholesale'!L90 -> 0 | M90: 0 | N90: 0 | P90: 0
B91: November | D91: ='6. Historical Wholesale'!D91 -> 0 | E91: 0 | F91: 0 | H91: ='6. Historical Wholesale'!H91 -> 0 | I91: 0 | J91: 0 | L91: ='6. Historical Wholesale'!L91 -> 0 | M91: 0 | N91: 0 | P91: 0
B92: December | D92: ='6. Historical Wholesale'!D92 -> 0 | E92: 0 | F92: 0 | H92: ='6. Historical Wholesale'!H92 -> 0 | I92: 0 | J92: 0 | L92: ='6. Historical Wholesale'!L92 -> 0 | M92: 0 | N92: 0 | P92: 0
B94: Total | D94: =SUM(D81:D92) -> 0 | E94: =IF(D94<>0,F94/D94,0) -> 0 | F94: =SUM(F81:F92) -> 0 | H94: =SUM(H81:H92) -> 0 | I94: =IF(H94<>0,J94/H94,0) -> 0 | J94: =SUM(J81:J92) -> 0 | L94: =SUM(L81:L92) -> 0 | M94: =IF(L94<>0,N94/L94,0) -> 0 | N94: =SUM(N81:N92) -> 0 | P94: =SUM(P81:P92) -> 0
B96: Total | D96: Network | H96: Line Connection | L96: Transformation Connection | P96: Total Line
B98: Month | D98: Units Billed | E98: Rate | F98: Amount | H98: Units Billed | I98: Rate | J98: Amount | L98: Units Billed | M98: Rate | N98: Amount | P98: Amount
B100: January | D100: =D24+D43+D62+D81 -> 42655 | E100: =IF(D100<>0,F100/D100,0) -> 3.61 | F100: =F24+F43+F62+F81 -> 153984.55 | H100: =H24+H43+H62+H81 -> 20951 | I100: =IF(H100<>0,J100/H100,0) -> 0.95 | J100: =J24+J43+J62+J81 -> 19903.45 | L100: =L24+L43+L62+L81 -> 45847 | M100: =IF(L100<>0,N100/L100,0) -> 2.34 | N100: =N24+N43+N62+N81 -> 107281.98 | P100: =J100+N100 -> 127185.43
B101: February | D101: =D25+D44+D63+D82 -> 37471 | E101: 3.61 | F101: =F25+F44+F63+F82 -> 135270.31 | H101: =H25+H44+H63+H82 -> 21320 | I101: 0.95 | J101: =J25+J44+J63+J82 -> 20254 | L101: =L25+L44+L63+L82 -> 41941 | M101: 2.34 | N101: =N25+N44+N63+N82 -> 98141.94 | P101: 118395.94
B102: March | D102: 34238 | E102: 3.61 | F102: 123599.18 | H102: 19403 | I102: 0.95 | J102: 18432.85 | L102: 36453 | M102: 2.34 | N102: 85300.02 | P102: 103732.87
B103: April | D103: 41801 | E103: 3.61 | F103: 150901.61 | H103: 29417 | I103: 0.95 | J103: 27946.15 | L103: 47270 | M103: 2.34 | N103: 110611.8 | P103: 138557.95
B104: May | D104: 33936 | E104: 3.61 | F104: 122508.96 | H104: 27048 | I104: 0.95 | J104: 25695.6 | L104: 40767 | M104: 2.34 | N104: 95394.78 | P104: 121090.38
B105: June | D105: 28094.27978 | E105: 3.61 | F105: 101420.35 | H105: 17040.85263 | I105: 0.95 | J105: 16188.81 | L105: 32018.11966 | M105: 2.34 | N105: 74922.4 | P105: 91111.21
B106: July | D106: 27198 | E106: 3.61 | F106: 98184.78 | H106: 16568 | I106: 0.95 | J106: 15739.6 | L106: 32935 | M106: 2.34 | N106: 77067.9 | P106: 92807.5
B107: August | D107: 27431 | E107: 3.61 | F107: 99025.91 | H107: 17319 | I107: 0.95 | J107: 16453.05 | L107: 33158 | M107: 2.34 | N107: 77589.72 | P107: 94042.77
B108: September | D108: 27694 | E108: 3.61 | F108: 99975.34 | H108: 18804 | I108: 0.95 | J108: 17863.8 | L108: 34866 | M108: 2.34 | N108: 81586.44 | P108: 99450.24
B109: October | D109: 32468 | E109: 3.61 | F109: 117209.48 | H109: 20127 | I109: 0.95 | J109: 19120.65 | L109: 37818 | M109: 2.34 | N109: 88494.12 | P109: 107614.77
B110: November | D110: 39496 | E110: 3.61 | F110: 142580.56 | H110: 21426 | I110: 0.95 | J110: 20354.7 | L110: 42482 | M110: 2.34 | N110: 99407.88 | P110: 119762.58
B111: December | D111: 38533 | E111: 3.61 | F111: 139104.13 | H111: 22639 | I111: 0.95 | J111: 21507.05 | L111: 42778 | M111: 2.34 | N111: 100100.52 | P111: 121607.57
B113: Total | D113: =SUM(D100:D111) -> 411015.2798 | E113: =IF(D113<>0,F113/D113,0) -> 3.61 | F113: =SUM(F100:F111) -> 1483765.16 | H113: =SUM(H100:H111) -> 252062.8526 | I113: =IF(H113<>0,J113/H113,0) -> 0.95 | J113: =SUM(J100:J111) -> 239459.71 | L113: =SUM(L100:L111) -> 468333.1197 | M113: =IF(L113<>0,N113/L113,0) -> 2.34 | N113: =SUM(N100:N111) -> 1095899.5 | P113: =SUM(P100:P111) -> 1335359.21
N115: Low Voltage Switchgear Credit (if applicable) | P115: ='5. UTRs and Sub-Transmission'!H75 -> 0
N117: Total including deduction for Low Voltage Switchgear Credit | P117: =P113+P115 -> 1335359.21

Sheet 8. Forecast Wholesale
B13: The purpose of this sheet is to calculate the expected billing when forecasted 2019 Uniform Transmission Rates are applied against historical 2017 transmission units.
B20: IESO | D20: Network | H20: Line Connection | L20: Transformation Connection | P20: Total Line
B22: Month | D22: Units Billed | E22: Rate | F22: Amount | H22: Units Billed | I22: Rate | J22: Amount | L22: Units Billed | M22: Rate | N22: Amount | P22: Amount
B24: January | D24: ='6. Historical Wholesale'!D24 -> 42655 | E24: ='5. UTRs and Sub-Transmission'!J22 -> 3.71 | F24: =D24*E24 -> 158250.05 | H24: ='6. Historical Wholesale'!H24 -> 20951 | I24: ='5. UTRs and Sub-Transmission'!J24 -> 0.94 | J24: =H24*I24 -> 19693.94 | L24: ='6. Historical Wholesale'!L24 -> 45847 | M24: ='5. UTRs and Sub-Transmission'!J26 -> 2.25 | N24: =L24*M24 -> 103155.75 | P24: =J24+N24 -> 122849.69
B25: February | D25: ='6. Historical Wholesale'!D25 -> 37471 | E25: =E24 -> 3.71 | F25: 139017.41 | H25: ='6. Historical Wholesale'!H25 -> 21320 | I25: =I24 -> 0.94 | J25: 20040.8 | L25: ='6. Historical Wholesale'!L25 -> 41941 | M25: =M24 -> 2.25 | N25: 94367.25 | P25: 114408.05
B26: March | D26: ='6. Historical Wholesale'!D26 -> 34238 | E26: 3.71 | F26: 127022.98 | H26: ='6. Historical Wholesale'!H26 -> 19403 | I26: 0.94 | J26: 18238.82 | L26: ='6. Historical Wholesale'!L26 -> 36453 | M26: 2.25 | N26: 82019.25 | P26: 100258.07
B27: April | D27: ='6. Historical Wholesale'!D27 -> 41801 | E27: 3.71 | F27: 155081.71 | H27: ='6. Historical Wholesale'!H27 -> 29417 | I27: 0.94 | J27: 27651.98 | L27: ='6. Historical Wholesale'!L27 -> 47270 | M27: 2.25 | N27: 106357.5 | P27: 134009.48
B28: May | D28: ='6. Historical Wholesale'!D28 -> 33936 | E28: 3.71 | F28: 125902.56 | H28: ='6. Historical Wholesale'!H28 -> 27048 | I28: 0.94 | J28: 25425.12 | L28: ='6. Historical Wholesale'!L28 -> 40767 | M28: 2.25 | N28: 91725.75 | P28: 117150.87
B29: June | D29: ='6. Historical Wholesale'!D29 -> 28094.27978 | E29: 3.71 | F29: 104229.778 | H29: ='6. Historical Wholesale'!H29 -> 17040.85263 | I29: 0.94 | J29: 16018.40147 | L29: ='6. Historical Wholesale'!L29 -> 32018.11966 | M29: 2.25 | N29: 72040.76923 | P29: 88059.1707
B30: July | D30: ='6. Historical Wholesale'!D30 -> 27198 | E30: 3.71 | F30: 100904.58 | H30: ='6. Historical Wholesale'!H30 -> 16568 | I30: 0.94 | J30: 15573.92 | L30: ='6. Historical Wholesale'!L30 -> 32935 | M30: 2.25 | N30: 74103.75 | P30: 89677.67
B31: August | D31: ='6. Historical Wholesale'!D31 -> 27431 | E31: 3.71 | F31: 101769.01 | H31: ='6. Historical Wholesale'!H31 -> 17319 | I31: 0.94 | J31: 16279.86 | L31: ='6. Historical Wholesale'!L31 -> 33158 | M31: 2.25 | N31: 74605.5 | P31: 90885.36
B32: September | D32: ='6. Historical Wholesale'!D32 -> 27694 | E32: 3.71 | F32: 102744.74 | H32: ='6. Historical Wholesale'!H32 -> 18804 | I32: 0.94 | J32: 17675.76 | L32: ='6. Historical Wholesale'!L32 -> 34866 | M32: 2.25 | N32: 78448.5 | P32: 96124.26
B33: October | D33: ='6. Historical Wholesale'!D33 -> 32468 | E33: 3.71 | F33: 120456.28 | H33: ='6. Historical Wholesale'!H33 -> 20127 | I33: 0.94 | J33: 18919.38 | L33: ='6. Historical Wholesale'!L33 -> 37818 | M33: 2.25 | N33: 85090.5 | P33: 104009.88
B34: November | D34: ='6. Historical Wholesale'!D34 -> 39496 | E34: 3.71 | F34: 146530.16 | H34: ='6. Historical Wholesale'!H34 -> 21426 | I34: 0.94 | J34: 20140.44 | L34: ='6. Historical Wholesale'!L34 -> 42482 | M34: 2.25 | N34: 95584.5 | P34: 115724.94
B35: December | D35: ='6. Historical Wholesale'!D35 -> 38533 | E35: 3.71 | F35: 142957.43 | H35: ='6. Historical Wholesale'!H35 -> 22639 | I35: 0.94 | J35: 21280.66 | L35: ='6. Historical Wholesale'!L35 -> 42778 | M35: 2.25 | N35: 96250.5 | P35: 117531.16
B37: Total | D37: =SUM(D24:D35) -> 411015.2798 | E37: =IF(D37<>0,F37/D37,0) -> 3.71 | F37: =SUM(F24:F35) -> 1524866.688 | H37: =SUM(H24:H35) -> 252062.8526 | I37: =IF(H37<>0,J37/H37,0) -> 0.94 | J37: =SUM(J24:J35) -> 236939.0815 | L37: =SUM(L24:L35) -> 468333.1197 | M37: =IF(L37<>0,N37/L37,0) -> 2.25 | N37: =SUM(N24:N35) -> 1053749.519 | P37: =SUM(P24:P35) -> 1290688.601
B39: Hydro One | D39: Network | H39: Line Connection | L39: Transformation Connection | P39: Total Line
B41: Month | D41: Units Billed | E41: Rate | F41: Amount | H41: Units Billed | I41: Rate | J41: Amount | L41: Units Billed | M41: Rate | N41: Amount | P41: Amount
B43: January | D43: ='6. Historical Wholesale'!D43 -> 0 | E43: ='5. UTRs and Sub-Transmission'!J36 -> 0 | F43: =D43*E43 -> 0 | H43: ='6. Historical Wholesale'!H43 -> 0 | I43: ='5. UTRs and Sub-Transmission'!J38 -> 0 | J43: =H43*I43 -> 0 | L43: ='6. Historical Wholesale'!L43 -> 0 | M43: ='5. UTRs and Sub-Transmission'!J40 -> 0 | N43: =L43*M43 -> 0 | P43: =J43+N43 -> 0
B44: February | D44: ='6. Historical Wholesale'!D44 -> 0 | E44: =E43 -> 0 | F44: 0 | H44: ='6. Historical Wholesale'!H44 -> 0 | I44: =I43 -> 0 | J44: 0 | L44: ='6. Historical Wholesale'!L44 -> 0 | M44: =M43 -> 0 | N44: 0 | P44: 0
B45: March | D45: ='6. Historical Wholesale'!D45 -> 0 | E45: 0 | F45: 0 | H45: ='6. Historical Wholesale'!H45 -> 0 | I45: 0 | J45: 0 | L45: ='6. Historical Wholesale'!L45 -> 0 | M45: 0 | N45: 0 | P45: 0
B46: April | D46: ='6. Historical Wholesale'!D46 -> 0 | E46: 0 | F46: 0 | H46: ='6. Historical Wholesale'!H46 -> 0 | I46: 0 | J46: 0 | L46: ='6. Historical Wholesale'!L46 -> 0 | M46: 0 | N46: 0 | P46: 0
B47: May | D47: ='6. Historical Wholesale'!D47 -> 0 | E47: 0 | F47: 0 | H47: ='6. Historical Wholesale'!H47 -> 0 | I47: 0 | J47: 0 | L47: ='6. Historical Wholesale'!L47 -> 0 | M47: 0 | N47: 0 | P47: 0
B48: June | D48: ='6. Historical Wholesale'!D48 -> 0 | E48: 0 | F48: 0 | H48: ='6. Historical Wholesale'!H48 -> 0 | I48: 0 | J48: 0 | L48: ='6. Historical Wholesale'!L48 -> 0 | M48: 0 | N48: 0 | P48: 0
B49: July | D49: ='6. Historical Wholesale'!D49 -> 0 | E49: 0 | F49: 0 | H49: ='6. Historical Wholesale'!H49 -> 0 | I49: 0 | J49: 0 | L49: ='6. Historical Wholesale'!L49 -> 0 | M49: 0 | N49: 0 | P49: 0
B50: August | D50: ='6. Historical Wholesale'!D50 -> 0 | E50: 0 | F50: 0 | H50: ='6. Historical Wholesale'!H50 -> 0 | I50: 0 | J50: 0 | L50: ='6. Historical Wholesale'!L50 -> 0 | M50: 0 | N50: 0 | P50: 0
B51: September | D51: ='6. Historical Wholesale'!D51 -> 0 | E51: 0 | F51: 0 | H51: ='6. Historical Wholesale'!H51 -> 0 | I51: 0 | J51: 0 | L51: ='6. Historical Wholesale'!L51 -> 0 | M51: 0 | N51: 0 | P51: 0
B52: October | D52: ='6. Historical Wholesale'!D52 -> 0 | E52: 0 | F52: 0 | H52: ='6. Historical Wholesale'!H52 -> 0 | I52: 0 | J52: 0 | L52: ='6. Historical Wholesale'!L52 -> 0 | M52: 0 | N52: 0 | P52: 0
B53: November | D53: ='6. Historical Wholesale'!D53 -> 0 | E53: 0 | F53: 0 | H53: ='6. Historical Wholesale'!H53 -> 0 | I53: 0 | J53: 0 | L53: ='6. Historical Wholesale'!L53 -> 0 | M53: 0 | N53: 0 | P53: 0
B54: December | D54: ='6. Historical Wholesale'!D54 -> 0 | E54: 0 | F54: 0 | H54: ='6. Historical Wholesale'!H54 -> 0 | I54: 0 | J54: 0 | L54: ='6. Historical Wholesale'!L54 -> 0 | M54: 0 | N54: 0 | P54: 0
B56: Total | D56: =SUM(D43:D54) -> 0 | E56: =IF(D56<>0,F56/D56,0) -> 0 | F56: =SUM(F43:F54) -> 0 | H56: =SUM(H43:H54) -> 0 | I56: =IF(H56<>0,J56/H56,0) -> 0 | J56: =SUM(J43:J54) -> 0 | L56: =SUM(L43:L54) -> 0 | M56: =IF(L56<>0,N56/L56,0) -> 0 | N56: =SUM(N43:N54) -> 0 | P56: =SUM(P43:P54) -> 0
B58: ='6. Historical Wholesale'!B58 -> Add Extra Host Here (I) | D58: Network | H58: Line Connection | L58: Transformation Connection | P58: Total Line
B60: Month | D60: Units Billed | E60: Rate | F60: Amount | H60: Units Billed | I60: Rate | J60: Amount | L60: Units Billed | M60: Rate | N60: Amount | P60: Amount
B62: January | D62: ='6. Historical Wholesale'!D62 -> 0 | E62: ='5. UTRs and Sub-Transmission'!J51 -> 0 | F62: =D62*E62 -> 0 | H62: ='6. Historical Wholesale'!H62 -> 0 | I62: ='5. UTRs and Sub-Transmission'!J53 -> 0 | J62: =H62*I62 -> 0 | L62: ='6. Historical Wholesale'!L62 -> 0 | M62: ='5. UTRs and Sub-Transmission'!J55 -> 0 | N62: =L62*M62 -> 0 | P62: =J62+N62 -> 0
B63: February | D63: ='6. Historical Wholesale'!D63 -> 0 | E63: =E62 -> 0 | F63: 0 | H63: ='6. Historical Wholesale'!H63 -> 0 | I63: =I62 -> 0 | J63: 0 | L63: ='6. Historical Wholesale'!L63 -> 0 | M63: =M62 -> 0 | N63: 0 | P63: 0
B64: March | D64: ='6. Historical Wholesale'!D64 -> 0 | E64: 0 | F64: 0 | H64: ='6. Historical Wholesale'!H64 -> 0 | I64: 0 | J64: 0 | L64: ='6. Historical Wholesale'!L64 -> 0 | M64: 0 | N64: 0 | P64: 0
B65: April | D65: ='6. Historical Wholesale'!D65 -> 0 | E65: 0 | F65: 0 | H65: ='6. Historical Wholesale'!H65 -> 0 | I65: 0 | J65: 0 | L65: ='6. Historical Wholesale'!L65 -> 0 | M65: 0 | N65: 0 | P65: 0
B66: May | D66: ='6. Historical Wholesale'!D66 -> 0 | E66: 0 | F66: 0 | H66: ='6. Historical Wholesale'!H66 -> 0 | I66: 0 | J66: 0 | L66: ='6. Historical Wholesale'!L66 -> 0 | M66: 0 | N66: 0 | P66: 0
B67: June | D67: ='6. Historical Wholesale'!D67 -> 0 | E67: 0 | F67: 0 | H67: ='6. Historical Wholesale'!H67 -> 0 | I67: 0 | J67: 0 | L67: ='6. Historical Wholesale'!L67 -> 0 | M67: 0 | N67: 0 | P67: 0
B68: July | D68: ='6. Historical Wholesale'!D68 -> 0 | E68: 0 | F68: 0 | H68: ='6. Historical Wholesale'!H68 -> 0 | I68: 0 | J68: 0 | L68: ='6. Historical Wholesale'!L68 -> 0 | M68: 0 | N68: 0 | P68: 0
B69: August | D69: ='6. Historical Wholesale'!D69 -> 0 | E69: 0 | F69: 0 | H69: ='6. Historical Wholesale'!H69 -> 0 | I69: 0 | J69: 0 | L69: ='6. Historical Wholesale'!L69 -> 0 | M69: 0 | N69: 0 | P69: 0
B70: September | D70: ='6. Historical Wholesale'!D70 -> 0 | E70: 0 | F70: 0 | H70: ='6. Historical Wholesale'!H70 -> 0 | I70: 0 | J70: 0 | L70: ='6. Historical Wholesale'!L70 -> 0 | M70: 0 | N70: 0 | P70: 0
B71: October | D71: ='6. Historical Wholesale'!D71 -> 0 | E71: 0 | F71: 0 | H71: ='6. Historical Wholesale'!H71 -> 0 | I71: 0 | J71: 0 | L71: ='6. Historical Wholesale'!L71 -> 0 | M71: 0 | N71: 0 | P71: 0
B72: November | D72: ='6. Historical Wholesale'!D72 -> 0 | E72: 0 | F72: 0 | H72: ='6. Historical Wholesale'!H72 -> 0 | I72: 0 | J72: 0 | L72: ='6. Historical Wholesale'!L72 -> 0 | M72: 0 | N72: 0 | P72: 0
B73: December | D73: ='6. Historical Wholesale'!D73 -> 0 | E73: 0 | F73: 0 | H73: ='6. Historical Wholesale'!H73 -> 0 | I73: 0 | J73: 0 | L73: ='6. Historical Wholesale'!L73 -> 0 | M73: 0 | N73: 0 | P73: 0
B75: Total | D75: =SUM(D62:D73) -> 0 | E75: =IF(D75<>0,F75/D75,0) -> 0 | F75: =SUM(F62:F73) -> 0 | H75: =SUM(H62:H73) -> 0 | I75: =IF(H75<>0,J75/H75,0) -> 0 | J75: =SUM(J62:J73) -> 0 | L75: =SUM(L62:L73) -> 0 | M75: =IF(L75<>0,N75/L75,0) -> 0 | N75: =SUM(N62:N73) -> 0 | P75: =SUM(P62:P73) -> 0
B77: ='6. Historical Wholesale'!B77 -> Add Extra Host Here (II) | D77: Network | H77: Line Connection | L77: Transformation Connection | P77: Total Line
B79: Month | D79: Units Billed | E79: Rate | F79: Amount | H79: Units Billed | I79: Rate | J79: Amount | L79: Units Billed | M79: Rate | N79: Amount | P79: Amount
B81: January | D81: ='6. Historical Wholesale'!D81 -> 0 | E81: ='5. UTRs and Sub-Transmission'!J66 -> 0 | F81: =D81*E81 -> 0 | H81: ='6. Historical Wholesale'!H81 -> 0 | I81: ='5. UTRs and Sub-Transmission'!J68 -> 0 | J81: =H81*I81 -> 0 | L81: ='6. Historical Wholesale'!L81 -> 0 | M81: ='5. UTRs and Sub-Transmission'!J70 -> 0 | N81: =L81*M81 -> 0 | P81: =J81+N81 -> 0
B82: February | D82: ='6. Historical Wholesale'!D82 -> 0 | E82: =E81 -> 0 | F82: 0 | H82: ='6. Historical Wholesale'!H82 -> 0 | I82: =I81 -> 0 | J82: 0 | L82: ='6. Historical Wholesale'!L82 -> 0 | M82: =M81 -> 0 | N82: 0 | P82: 0
B83: March | D83: ='6. Historical Wholesale'!D83 -> 0 | E83: 0 | F83: 0 | H83: ='6. Historical Wholesale'!H83 -> 0 | I83: 0 | J83: 0 | L83: ='6. Historical Wholesale'!L83 -> 0 | M83: 0 | N83: 0 | P83: 0
B84: April | D84: ='6. Historical Wholesale'!D84 -> 0 | E84: 0 | F84: 0 | H84: ='6. Historical Wholesale'!H84 -> 0 | I84: 0 | J84: 0 | L84: ='6. Historical Wholesale'!L84 -> 0 | M84: 0 | N84: 0 | P84: 0
B85: May | D85: ='6. Historical Wholesale'!D85 -> 0 | E85: 0 | F85: 0 | H85: ='6. Historical Wholesale'!H85 -> 0 | I85: 0 | J85: 0 | L85: ='6. Historical Wholesale'!L85 -> 0 | M85: 0 | N85: 0 | P85: 0
B86: June | D86: ='6. Historical Wholesale'!D86 -> 0 | E86: 0 | F86: 0 | H86: ='6. Historical Wholesale'!H86 -> 0 | I86: 0 | J86: 0 | L86: ='6. Historical Wholesale'!L86 -> 0 | M86: 0 | N86: 0 | P86: 0
B87: July | D87: ='6. Historical Wholesale'!D87 -> 0 | E87: 0 | F87: 0 | H87: ='6. Historical Wholesale'!H87 -> 0 | I87: 0 | J87: 0 | L87: ='6. Historical Wholesale'!L87 -> 0 | M87: 0 | N87: 0 | P87: 0
B88: August | D88: ='6. Historical Wholesale'!D88 -> 0 | E88: 0 | F88: 0 | H88: ='6. Historical Wholesale'!H88 -> 0 | I88: 0 | J88: 0 | L88: ='6. Historical Wholesale'!L88 -> 0 | M88: 0 | N88: 0 | P88: 0
B89: September | D89: ='6. Historical Wholesale'!D89 -> 0 | E89: 0 | F89: 0 | H89: ='6. Historical Wholesale'!H89 -> 0 | I89: 0 | J89: 0 | L89: ='6. Historical Wholesale'!L89 -> 0 | M89: 0 | N89: 0 | P89: 0
B90: October | D90: ='6. Historical Wholesale'!D90 -> 0 | E90: 0 | F90: 0 | H90: ='6. Historical Wholesale'!H90 -> 0 | I90: 0 | J90: 0 | L90: ='6. Historical Wholesale'!L90 -> 0 | M90: 0 | N90: 0 | P90: 0
B91: November | D91: ='6. Historical Wholesale'!D91 -> 0 | E91: 0 | F91: 0 | H91: ='6. Historical Wholesale'!H91 -> 0 | I91: 0 | J91: 0 | L91: ='6. Historical Wholesale'!L91 -> 0 | M91: 0 | N91: 0 | P91: 0
B92: December | D92: ='6. Historical Wholesale'!D92 -> 0 | E92: 0 | F92: 0 | H92: ='6. Historical Wholesale'!H92 -> 0 | I92: 0 | J92: 0 | L92: ='6. Historical Wholesale'!L92 -> 0 | M92: 0 | N92: 0 | P92: 0
B94: Total | D94: =SUM(D81:D92) -> 0 | E94: =IF(D94<>0,F94/D94,0) -> 0 | F94: =SUM(F81:F92) -> 0 | H94: =SUM(H81:H92) -> 0 | I94: =IF(H94<>0,J94/H94,0) -> 0 | J94: =SUM(J81:J92) -> 0 | L94: =SUM(L81:L92) -> 0 | M94: =IF(L94<>0,N94/L94,0) -> 0 | N94: =SUM(N81:N92) -> 0 | P94: =SUM(P81:P92) -> 0
B96: Total | D96: Network | H96: Line Connection | L96: Transformation Connection | P96: Total Line
B98: Month | D98: Units Billed | E98: Rate | F98: Amount | H98: Units Billed | I98: Rate | J98: Amount | L98: Units Billed | M98: Rate | N98: Amount | P98: Amount
B100: January | D100: =D24+D43+D62+D81 -> 42655 | E100: =IF(D100<>0,F100/D100,0) -> 3.71 | F100: =F24+F43+F62+F81 -> 158250.05 | H100: =H24+H43+H62+H81 -> 20951 | I100: =IF(H100<>0,J100/H100,0) -> 0.94 | J100: =J24+J43+J62+J81 -> 19693.94 | L100: =L24+L43+L62+L81 -> 45847 | M100: =IF(L100<>0,N100/L100,0) -> 2.25 | N100: =N24+N43+N62+N81 -> 103155.75 | P100: =J100+N100 -> 122849.69
B101: February | D101: =D25+D44+D63+D82 -> 37471 | E101: 3.71 | F101: 139017.41 | H101: =H25+H44+H63+H82 -> 21320 | I101: 0.94 | J101: =J25+J44+J63+J82 -> 20040.8 | L101: =L25+L44+L63+L82 -> 41941 | M101: 2.25 | N101: =N25+N44+N63+N82 -> 94367.25 | P101: 114408.05
B102: March | D102: 34238 | E102: 3.71 | F102: 127022.98 | H102: =H26+H45+H64+H83 -> 19403 | I102: 0.94 | J102: =J26+J45+J64+J83 -> 18238.82 | L102: =L26+L45+L64+L83 -> 36453 | M102: 2.25 | N102: =N26+N45+N64+N83 -> 82019.25 | P102: 100258.07
B103: April | D103: 41801 | E103: 3.71 | F103: 155081.71 | H103: =H27+H46+H65+H84 -> 29417 | I103: 0.94 | J103: =J27+J46+J65+J84 -> 27651.98 | L103: =L27+L46+L65+L84 -> 47270 | M103: 2.25 | N103: =N27+N46+N65+N84 -> 106357.5 | P103: 134009.48
B104: May | D104: 33936 | E104: 3.71 | F104: 125902.56 | H104: =H28+H47+H66+H85 -> 27048 | I104: 0.94 | J104: =J28+J47+J66+J85 -> 25425.12 | L104: =L28+L47+L66+L85 -> 40767 | M104: 2.25 | N104: =N28+N47+N66+N85 -> 91725.75 | P104: 117150.87
B105: June | D105: 28094.27978 | E105: 3.71 | F105: 104229.778 | H105: =H29+H48+H67+H86 -> 17040.85263 | I105: 0.94 | J105: =J29+J48+J67+J86 -> 16018.40147 | L105: =L29+L48+L67+L86 -> 32018.11966 | M105: 2.25 | N105: =N29+N48+N67+N86 -> 72040.76923 | P105: 88059.1707
B106: July | D106: 27198 | E106: 3.71 | F106: 100904.58 | H106: =H30+H49+H68+H87 -> 16568 | I106: 0.94 | J106: =J30+J49+J68+J87 -> 15573.92 | L106: =L30+L49+L68+L87 -> 32935 | M106: 2.25 | N106: =N30+N49+N68+N87 -> 74103.75 | P106: 89677.67
B107: August | D107: 27431 | E107: 3.71 | F107: 101769.01 | H107: =H31+H50+H69+H88 -> 17319 | I107: 0.94 | J107: =J31+J50+J69+J88 -> 16279.86 | L107: =L31+L50+L69+L88 -> 33158 | M107: 2.25 | N107: =N31+N50+N69+N88 -> 74605.5 | P107: 90885.36
B108: September | D108: 27694 | E108: 3.71 | F108: 102744.74 | H108: =H32+H51+H70+H89 -> 18804 | I108: 0.94 | J108: =J32+J51+J70+J89 -> 17675.76 | L108: =L32+L51+L70+L89 -> 34866 | M108: 2.25 | N108: =N32+N51+N70+N89 -> 78448.5 | P108: 96124.26
B109: October | D109: 32468 | E109: 3.71 | F109: 120456.28 | H109: =H33+H52+H71+H90 -> 20127 | I109: 0.94 | J109: =J33+J52+J71+J90 -> 18919.38 | L109: =L33+L52+L71+L90 -> 37818 | M109: 2.25 | N109: =N33+N52+N71+N90 -> 85090.5 | P109: 104009.88
B110: November | D110: 39496 | E110: 3.71 | F110: 146530.16 | H110: =H34+H53+H72+H91 -> 21426 | I110: 0.94 | J110: =J34+J53+J72+J91 -> 20140.44 | L110: =L34+L53+L72+L91 -> 42482 | M110: 2.25 | N110: =N34+N53+N72+N91 -> 95584.5 | P110: 115724.94
B111: December | D111: 38533 | E111: 3.71 | F111: 142957.43 | H111: =H35+H54+H73+H92 -> 22639 | I111: 0.94 | J111: =J35+J54+J73+J92 -> 21280.66 | L111: =L35+L54+L73+L92 -> 42778 | M111: 2.25 | N111: =N35+N54+N73+N92 -> 96250.5 | P111: 117531.16
B113: Total | D113: =SUM(D100:D111) -> 411015.2798 | E113: =IF(D113<>0,F113/D113,0) -> 3.71 | F113: =SUM(F100:F111) -> 1524866.688 | H113: =SUM(H100:H111) -> 252062.8526 | I113: =IF(H113<>0,J113/H113,0) -> 0.94 | J113: =SUM(J100:J111) -> 236939.0815 | L113: =SUM(L100:L111) -> 468333.1197 | M113: =IF(L113<>0,N113/L113,0) -> 2.25 | N113: =SUM(N100:N111) -> 1053749.519 | P113: =SUM(P100:P111) -> 1290688.601
N115: Low Voltage Switchgear Credit (if applicable) | P115: ='5. UTRs and Sub-Transmission'!J75 -> 0
N117: Total including deduction for Low Voltage Switchgear Credit | P117: =P113+P115 -> 1290688.601

Sheet 9. RTSR Rates to Forecast
A13: The purpose of this sheet is to re-align the current RTS Network Rates to recover current wholesale network costs.
A15: Rate Class | B15: Rate Description | C15: Unit | D15: Current RTSR-Network | E15: Loss Adjusted Billed kWh | F15: Billed kW | G15: Billed Amount | H15: Billed Amount % | I15: Current Wholesale Billing | J15: Adjusted RTSR Network
A17: Residential – High Density [R1] | B17: RTSR - Network | C17: kWh | D17: 0.0066 | E17: 112547683.4 | G17: =ROUND(D17*E17, 2) -> 742814.71 | H17: =G17/1277612.32 -> 0.5814085371 | I17: =H17*total_current_wholesale_network -> 862673.7311 | J17: =IF(ISERROR(I17/E17), 0, I17/E17) -> 0.00766496213
A18: General Service 50 to 4,999 kW | B18: RTSR - Network | C18: kW | D18: 2.5066 | F18: 196648 | G18: =ROUND(D18*F18, 2) -> 492917.88 | H18: =G18/1277612.32 -> 0.3858117774 | I18: =H18*total_current_wholesale_network -> 572454.0736 | J18: =IF(ISERROR(I18/F18), 0, I18/F18) -> 2.911059729
A19: Seasonal Residential – Normal Density [R4] | B19: RTSR - Network | C19: kWh | D19: 0.0066 | E19: 5890288.359 | G19: =ROUND(D19*E19, 2) -> 38875.9 | H19: =G19/1277612.32 -> 0.03042855755 | I19: =H19*total_current_wholesale_network -> 45148.83356 | J19: =IF(ISERROR(I19/E19), 0, I19/E19) -> 0.007664961511
A20: Street Lighting | B20: RTSR - Network | C20: kW | D20: 1.815 | F20: 1655 | G20: =ROUND(D20*F20, 2) -> 3003.83 | H20: =G20/1277612.32 -> 0.002351127923 | I20: =H20*total_current_wholesale_network -> 3488.521698 | J20: =IF(ISERROR(I20/F20), 0, I20/F20) -> 2.107868096
A22: The purpose of this table is to re-align the current RTS Connection Rates to recover current wholesale connection costs.
A23: Rate Class | B23: Rate Description | C23: Unit | D23: Current RTSR-Connection | E23: Loss Adjusted Billed kWh | F23: Billed kW | G23: Billed Amount | H23: Billed Amount % | I23: Current Wholesale Billing | J23: Adjusted RTSR-Connection
A25: Residential – High Density [R1] | B25: RTSR - Connection | C25: kWh | D25: 0.006 | E25: 112547683.4 | G25: =ROUND(D25*E25, 2) -> 675286.1 | H25: =G25/1161450.12 -> 0.5814163591 | I25: =H25*Total_Current_Wholesale_Lineplus -> 776399.6899 | J25: =IF(ISERROR(I25/E25), 0, I25/E25) -> 0.00689840667
A26: General Service 50 to 4,999 kW | B26: RTSR - Connection | C26: kW | D26: 2.2787 | F26: 196648 | G26: =ROUND(D26*F26, 2) -> 448101.8 | H26: =G26/1161450.12 -> 0.3858123498 | I26: =H26*Total_Current_Wholesale_Lineplus -> 515198.0747 | J26: =IF(ISERROR(I26/F26), 0, I26/F26) -> 2.619899896
A27: Seasonal Residential – Normal Density [R4] | B27: RTSR - Connection | C27: kWh | D27: 0.006 | E27: 5890288.359 | G27: =ROUND(D27*E27, 2) -> 35341.73 | H27: =G27/1161450.12 -> 0.03042896926 | I27: =H27*Total_Current_Wholesale_Lineplus -> 40633.60435 | J27: =IF(ISERROR(I27/E27), 0, I27/E27) -> 0.006898406645
A28: Street Lighting | B28: RTSR - Connection | C28: kW | D28: 1.6438 | F28: 1655 | G28: =ROUND(D28*F28, 2) -> 2720.49 | H28: =G28/1161450.12 -> 0.002342321855 | I28: =H28*Total_Current_Wholesale_Lineplus -> 3127.841062 | J28: =IF(ISERROR(I28/F28), 0, I28/F28) -> 1.889934177
A30: The purpose of this table is to update the re-aligned RTS Network Rates to recover future wholesale network costs.
A31: Rate Class | B31: Rate Description | C31: Unit | D31: Adjusted RTSR-Network | E31: Loss Adjusted Billed kWh | F31: Billed kW | G31: Billed Amount | H31: Billed Amount % | I31: Current Wholesale Billing | J31: Proposed RTSR-Network
A33: Residential – High Density [R1] | B33: RTSR - Network | C33: kWh | D33: 0.00766496213 | E33: 112547683.4 | G33: =IF(ISERROR(D33*E33), 0, ROUND(D33*E33, 2)) -> 862673.73 | H33: =G33/1483765.15 -> 0.5814085403 | I33: =H33*forecast_wholesale_network -> 886570.5152 | J33: =IF(ISERROR(I33/E33), 0, I33/E33) -> 0.007877287993
A34: General Service 50 to 4,999 kW | B34: RTSR - Network | C34: kW | D34: 2.911059729 | F34: 196648 | G34: =ROUND(D34*F34, 2) -> 572454.07 | H34: =G34/1483765.15 -> 0.3858117776 | I34: =H34*forecast_wholesale_network -> 588311.5274 | J34: =IF(ISERROR(I34/F34), 0, I34/F34) -> 2.991698504
A35: Seasonal Residential – Normal Density [R4] | B35: RTSR - Network | C35: kWh | D35: 0.007664961511 | E35: 5890288.359 | G35: =IF(ISERROR(D35*E35), 0, ROUND(D35*E35, 2)) -> 45148.83 | H35: =G35/1483765.15 -> 0.03042855535 | I35: =H35*forecast_wholesale_network -> 46399.49042 | J35: =IF(ISERROR(I35/E35), 0, I35/E35) -> 0.007877286747
A36: Street Lighting | B36: RTSR - Network | C36: kW | D36: 2.107868096 | F36: 1655 | G36: =ROUND(D36*F36, 2) -> 3488.52 | H36: =G36/1483765.15 -> 0.002351126794 | I36: =H36*forecast_wholesale_network -> 3585.154927 | J36: =IF(ISERROR(I36/F36), 0, I36/F36) -> 2.166256754
A38: The purpose of this table is to update the re-aligned RTS Connection Rates to recover future wholesale connection costs.
A39: Rate Class | B39: Rate Description | C39: Unit | D39: Adjusted RTSR-Connection | E39: Loss Adjusted Billed kWh | F39: Billed kW | G39: Billed Amount | H39: Billed Amount % | I39: Current Wholesale Billing | J39: Proposed RTSR-Connection
A41: Residential – High Density [R1] | B41: RTSR - Connection | C41: kWh | D41: 0.00689840667 | E41: 112547683.4 | G41: =ROUND(D41*E41, 2) -> 776399.69 | H41: =G41/1335359.2 -> 0.5814163635 | I41: =H41*forecast_wholesale_lineplus -> 750427.4726 | J41: =IF(ISERROR(I41/E41), 0, I41/E41) -> 0.006667640327
A42: General Service 50 to 4,999 kW | B42: RTSR - Connection | C42: kW | D42: 2.619899896 | F42: 196648 | G42: =ROUND(D42*F42, 2) -> 515198.07 | H42: =G42/1335359.2 -> 0.3858123492 | I42: =H42*forecast_wholesale_lineplus -> 497963.6011 | J42: =IF(ISERROR(I42/F42), 0, I42/F42) -> 2.532258661
A43: Seasonal Residential – Normal Density [R4] | B43: RTSR - Connection | C43: kWh | D43: 0.006898406645 | E43: 5890288.359 | G43: =ROUND(D43*E43, 2) -> 40633.6 | H43: =G43/1335359.2 -> 0.03042896623 | I43: =H43*forecast_wholesale_lineplus -> 39274.31984 | J43: =IF(ISERROR(I43/E43), 0, I43/E43) -> 0.006667639588
A44: Street Lighting | B44: RTSR - Connection | C44: kW | D44: 1.889934177 | F44: 1655 | G44: =ROUND(D44*F44, 2) -> 3127.84 | H44: =G44/1335359.2 -> 0.002342321077 | I44: =H44*forecast_wholesale_lineplus -> 3023.207114 | J44: =IF(ISERROR(I44/F44), 0, I44/F44) -> 1.826711247

Sheet hidden1 (hidden)
A1: =IF('3. Rate Classes'!L17=1, '3. Rate Classes'!C17, "") -> Residential – High Density [R1] | B1: 1
A2: =IF('3. Rate Classes'!L18=1, '3. Rate Classes'!C18, "") -> General Service 50 to 4,999 kW | B2: 2
A3: =IF('3. Rate Classes'!L19=1, '3. Rate Classes'!C19, "") -> Seasonal Residential – Normal Density [R4] | B3: 3
A4: =IF('3. Rate Classes'!L20=1, '3. Rate Classes'!C20, "") -> Street Lighting | B4: 4
A5: =IF('3. Rate Classes'!L21=1, '3. Rate Classes'!C21, "") ->  | B5: 5
A6: =IF('3. Rate Classes'!L22=1, '3. Rate Classes'!C22, "") ->  | B6: 6
A7: =IF('3. Rate Classes'!L23=1, '3. Rate Classes'!C23, "") ->  | B7: 7
A8: =IF('3. Rate Classes'!L24=1, '3. Rate Classes'!C24, "") ->  | B8: 8
A9: =IF('3. Rate Classes'!L25=1, '3. Rate Classes'!C25, "") ->  | B9: 9
A10: =IF('3. Rate Classes'!L26=1, '3. Rate Classes'!C26, "") ->  | B10: 10
A11: =IF('3. Rate Classes'!L27=1, '3. Rate Classes'!C27, "") ->  | B11: 11
A12: =IF('3. Rate Classes'!L28=1, '3. Rate Classes'!C28, "") ->  | B12: 12
A13: =IF('3. Rate Classes'!L29=1, '3. Rate Classes'!C29, "") ->  | B13: 13
A14: =IF('3. Rate Classes'!L30=1, '3. Rate Classes'!C30, "") ->  | B14: 14
A15: =IF('3. Rate Classes'!L31=1, '3. Rate Classes'!C31, "") ->  | B15: 15
A16: =IF('3. Rate Classes'!L32=1, '3. Rate Classes'!C32, "") ->  | B16: 16
A17: =IF('3. Rate Classes'!L33=1, '3. Rate Classes'!C33, "") ->  | B17: 17
A18: =IF('3. Rate Classes'!L34=1, '3. Rate Classes'!C34, "") ->  | B18: 18
A19: =IF('3. Rate Classes'!L35=1, '3. Rate Classes'!C35, "") ->  | B19: 19
A20: =IF('3. Rate Classes'!L36=1, '3. Rate Classes'!C36, "") ->  | B20: 20
A21: =IF('3. Rate Classes'!L37=1, '3. Rate Classes'!C37, "") ->  | B21: 21
A22: =IF('3. Rate Classes'!L38=1, '3. Rate Classes'!C38, "") ->  | B22: 22
